[Event "ROU-chT 1st League 2019"]
[Site "Mamaia"]
[Date "2019.09.29"]
[Round "9.23"]
[White "Stoleriu, George"]
[Black "Micu, Iulian"]
[Result "1-0"]
[ECO "B00"]
[WhiteElo "2351"]
[BlackElo "2165"]
[Annotator "NA"]
[PlyCount "103"]
[EventDate "2019.09.21"]
[EventType "team-tourn"]
[EventCountry "ROU"]
[SourceTitle "playchess.com"]
[Source "ChessBase"]
[SourceQuality "1"]
[TimeControl "40/5400+30:1800+30"]

1. e4 {[%emt 0:00:00]} d6 {[%emt 0:00:00]} 2. d4 {[%emt 0:00:00]} e5 {[%emt 0:00:28]} 3. dxe5 {[%emt 0:03:04]} dxe5 {[%emt 0:00:17]} 4. Qxd8+ {[%emt 0:00:03]} Kxd8 {[%emt 0:00:10]} 5. Bc4 {[%emt 0:00:43]} Be6 {[%emt 0:00:29]} 6. Bxe6 {[%emt 0:00:05]} fxe6 {[%emt 0:00:10]} 7. Be3 {[%emt 0:00:19]} Bd6 {[%emt 0:01:05]} 8. Nd2 {[%emt 0:01:12]} Nf6 {[%emt 0:03:38]} 9. f3 {[%emt 0:00:03]} Nc6 {[%emt 0:00:44]} 10. c3 {[%emt 0:00:45]} Ke7 {[%emt 0:03:32]} 11. Nh3 {[%emt 0:01:56]} h6 {[%emt 0:02:21]} 12. Nf2 {[%emt 0:00:22]} Rag8 {[%emt 0:11:35]} 13. h4 {[%emt 0:00:36]} Nh5 {[%emt 0:02:57]} 14. b4 {[%emt 0:04:29]} Nf4 {[%emt 0:10:56]} 15. g3 {[%emt 0:07:43]} Nh5 {[%emt 0:06:01]} 16. Rg1 {[%emt 0:01:00]} Kd7 {[%emt 0:10:58]} 17. a4 {[%emt 0:02:03]} a6 {[%emt 0:03:48]} 18. a5 {[%emt 0:05:31]} Be7 {[%emt 0:04:48]} 19. Nd3 {[%emt 0:07:39]} g5 {[%emt 0:07:09]} 20. hxg5 {[%emt 0:10:17]} Bxg5 {[%emt 0:03:14]} 21. Nc5+ {[%emt 0:00:56]} Kc8 {[%emt 0:00:34]} 22. Bxg5 {[%emt 0:01:02]} Rxg5 {[%emt 0:00:11]} 23. Kf2 {[%emt 0:00:27]} Ng7 {[%emt 0:05:30]} 24. Nc4 {[%emt 0:00:25]} Rf8 {[%emt 0:02:21]} 25. Rad1 {[%emt 0:00:42]} Rg6 {[%emt 0:01:57]} 26. Nd7 {[%emt 0:01:15]} Rg8 {[%emt 0:01:47]} 27. Ncxe5 {[%emt 0:01:32]} Nxe5 28. Nxe5 {[%emt 0:00:03]} Rf6 {[%emt 0:00:16]} 29. Rd7 {[%emt 0:01:55]} Ne8 {[%emt 0:03:55]} 30. Rh7 {[%emt 0:02:41]} Nd6 {[%emt 0:07:37]} 31. Ke3 {[%emt 0:00:07]} Nb5 {[%emt 0:01:22]} 32. c4 {[%emt 0:00:29]} Nd6 {[%emt 0:01:52]} 33. Rh1 {[%emt 0:00:37]} b6 {[%emt 0:01:17]} 34. axb6 {[%emt 0:00:21]} cxb6 {[%emt 0:00:14]} 35. R1xh6 {[%emt 0:01:22]} Rxh6 {[%emt 0:01:50]} 36. Rxh6 {[%emt 0:00:05]} Rxg3 {[%emt 0:00:22]} 37. Rxe6 {[%emt 0:00:04]} Kc7 {[%emt 0:00:26]} 38. c5 {[%emt 0:00:24]} Nc8 {[%emt 0:00:38]} 39. Nc4 {[%emt 0:01:36]} b5 {[%emt 0:00:28]} 40. Na5 {[%emt 0:00:00]} Rg1 {[%emt 0:00:00]} 41. Rxa6 {[%emt 0:01:42]} Rb1 {[%emt 0:01:35]} 42. Rh6 {[%emt 0:00:10]} Ne7 {[%emt 0:01:09]} 43. Rh7 {[%emt 0:00:12]} Kd7 {[%emt 0:00:50]} 44. c6+ {[%emt 0:01:24]} Ke6 {[%emt 0:00:21]} 45. f4 {[%emt 0:02:24]} Nc8 {[%emt 0:01:05]} 46. Rh8 {[%emt 0:04:01]} Nd6 {[%emt 0:02:35]} 47. e5 {[%emt 0:00:10]} Nf5+ {[%emt 0:00:10]} 48. Kd2 {[%emt 0:00:11]} Ne7 {[%emt 0:05:02]} 49. c7 {[%emt 0:00:31]} Kd7 {[%emt 0:00:51]} 50. Rh7 {[%emt 0:00:05]} Kxc7 {[%emt 0:00:10]} 51. Rxe7+ {[%emt 0:00:04]} Kb6 {[%emt 0:00:19]} 52. Re6+ {[%emt 0:01:12]} 1-0

[Event "ROU-chT 1st League 2019"]
[Site "Mamaia"]
[Date "2019.09.29"]
[Round "9.24"]
[White "Jiroveanu, George"]
[Black "Balla, Tamas-Kristof"]
[Result "0-1"]
[ECO "B23"]
[WhiteElo "2241"]
[BlackElo "2335"]
[Annotator "NA"]
[PlyCount "140"]
[EventDate "2019.09.21"]
[EventType "team-tourn"]
[EventCountry "ROU"]
[SourceTitle "playchess.com"]
[Source "ChessBase"]
[SourceQuality "1"]
[TimeControl "40/5400+30:1800+30"]

1. e4 {[%emt 0:00:00]} c5 {[%emt 0:00:00]} 2. Nc3 {[%emt 0:00:38]} Nc6 {[%emt 0:00:00]} 3. f4 {[%emt 0:01:50]} g6 {[%emt 0:00:00]} 4. Nf3 {[%emt 0:00:08]} Bg7 {[%emt 0:00:00]} 5. d3 {[%emt 0:00:46]} d6 {[%emt 0:00:45]} 6. g3 {[%emt 0:01:29]} Rb8 {[%emt 0:00:06]} 7. Bg2 {[%emt 0:00:09]} b5 {[%emt 0:00:08]} 8. O-O {[%emt 0:01:00]} e6 {[%emt 0:00:56]} 9. Ng5 {[%emt 0:24:46]} h6 {[%emt 0:06:19]} 10. e5 {[%emt 0:04:18]} d5 {[%emt 0:07:04]} 11. Nf3 {[%emt 0:00:28]} b4 {[%emt 0:01:20]} 12. Na4 {[%emt 0:01:58]} Qa5 {[%emt 0:09:36]} 13. b3 {[%emt 0:01:40]} Nge7 {[%emt 0:02:15]} 14. Qe1 {[%emt 0:02:18]} Ba6 {[%emt 0:19:24]} 15. Qf2 {[%emt 0:10:57]} c4 {[%emt 0:02:27]} 16. Nc5 {[%emt 0:01:45]} cxd3 {[%emt 0:21:20]} 17. cxd3 {[%emt 0:07:36]} Rc8 {[%emt 0:02:51]} 18. Nxa6 {[%emt 0:02:13]} Qxa6 {[%emt 0:00:27]} 19. Rd1 {[%emt 0:00:55]} O-O {[%emt 0:00:44]} 20. Bh3 {[%emt 0:06:12]} Rc7 {[%emt 0:02:45]} 21. Bb2 {[%emt 0:01:45]} Rfc8 {[%emt 0:00:23]} 22. g4 {[%emt 0:01:59]} Nd8 {[%emt 0:00:24]} 23. Rd2 {[%emt 0:01:13]} Qb6 {[%emt 0:01:43]} 24. d4 {[%emt 0:01:57]} a5 {[%emt 0:00:30]} 25. f5 {[%emt 0:02:22]} exf5 {[%emt 0:05:21]} 26. gxf5 {[%emt 0:00:17]} Nxf5 {[%emt 0:00:53]} 27. Bxf5 {[%emt 0:00:06]} gxf5 {[%emt 0:00:04]} 28. Nh4 {[%emt 0:01:52]} f6 {[%emt 0:02:22]} 29. Nxf5 {[%emt 0:02:13]} fxe5 {[%emt 0:02:14]} 30. dxe5 {[%emt 0:00:20]} Qg6+ {[%emt 0:01:54]} 31. Ng3 {[%emt 0:00:12]} Rc2 {[%emt 0:03:31]} 32. Rad1 {[%emt 0:00:52]} Ne6 {[%emt 0:00:35]} 33. Qf5 {[%emt 0:04:52]} Kh7 {[%emt 0:01:24]} 34. h4 {[%emt 0:05:05]} Bh8 {[%emt 0:05:23]} 35. Qxg6+ {[%emt 0:01:44]} Kxg6 {[%emt 0:00:10]} 36. Nf1 {[%emt 0:00:18]} d4 {[%emt 0:01:07]} 37. Bxd4 {[%emt 0:01:01]} Nxd4 {[%emt 0:00:09]} 38. Rxd4 {[%emt 0:00:02]} Bxe5 {[%emt 0:00:35]} 39. Rd5 {[%emt 0:05:33]} Bc7 {[%emt 0:01:23]} 40. R1d2 {[%emt 0:00:00]} Rc1 {[%emt 0:00:00]} 41. h5+ {[%emt 0:22:49]} Kf6 {[%emt 0:01:28]} 42. Rd1 {[%emt 0:07:12]} Rg8+ {[%emt 0:01:21]} 43. Kf2 {[%emt 0:00:44]} Rxd1 {[%emt 0:01:23]} 44. Rxd1 {[%emt 0:00:06]} Rg5 {[%emt 0:00:06]} 45. Ne3 {[%emt 0:02:02]} Ke6 {[%emt 0:00:25]} 46. Rh1 {[%emt 0:01:37]} Bb6 {[%emt 0:00:20]} 47. Kf3 {[%emt 0:00:44]} Bxe3 {[%emt 0:00:22]} 48. Kxe3 {[%emt 0:00:05]} Rg2 {[%emt 0:00:05]} 49. Kd4 {[%emt 0:02:25]} Rxa2 {[%emt 0:01:07]} 50. Rg1 {[%emt 0:00:03]} Rd2+ {[%emt 0:03:07]} 51. Ke4 {[%emt 0:01:57]} Rb2 {[%emt 0:04:16]} 52. Ra1 {[%emt 0:00:51]} Rxb3 {[%emt 0:00:32]} 53. Rxa5 {[%emt 0:00:03]} Kf6 {[%emt 0:00:54]} 54. Kf4 {[%emt 0:00:32]} Rb1 {[%emt 0:01:16]} 55. Ra6+ {[%emt 0:00:34]} Kg7 {[%emt 0:00:20]} 56. Ra7+ {[%emt 0:00:17]} Kf8 {[%emt 0:00:12]} 57. Ra8+ {[%emt 0:00:38]} Ke7 {[%emt 0:00:16]} 58. Ke4 {[%emt 0:00:37]} b3 {[%emt 0:00:47]} 59. Kd3 {[%emt 0:00:02]} Kf6 {[%emt 0:00:50]} 60. Rb8 {[%emt 0:00:35]} Kg5 {[%emt 0:00:19]} 61. Rb5+ {[%emt 0:00:01]} Kg4 {[%emt 0:00:13]} 62. Kc3 {[%emt 0:00:08]} Rh1 {[%emt 0:00:52]} 63. Kd4 {[%emt 0:00:50]} Rh3 {[%emt 0:01:03]} 64. Ke4 {[%emt 0:00:03]} Rg3 {[%emt 0:00:53]} 65. Rb6 {[%emt 0:01:01]} Kxh5 {[%emt 0:00:20]} 66. Kf4 {[%emt 0:00:06]} Rc3 {[%emt 0:00:19]} 67. Rb5+ {[%emt 0:00:07]} Kh4 {[%emt 0:00:15]} 68. Rb6 {[%emt 0:00:31]} h5 {[%emt 0:01:21]} 69. Rb4 {[%emt 0:01:42]} Kh3 {[%emt 0:01:09]} 70. Kg5 {[%emt 0:00:03]} Kg3 {[%emt 0:00:09]} 0-1

[Event "ROU-chT 1st League 2019"]
[Site "Mamaia"]
[Date "2019.09.29"]
[Round "9.25"]
[White "Parligras, Mircea-Emilian"]
[Black "Macovei, Andrei"]
[Result "1/2-1/2"]
[ECO "B11"]
[WhiteElo "2629"]
[BlackElo "2426"]
[Annotator "ChessBase"]
[PlyCount "127"]
[EventDate "2019.09.21"]
[EventType "team-tourn"]
[EventCountry "ROU"]
[SourceTitle "playchess.com"]
[Source "ChessBase"]
[SourceQuality "1"]
[TimeControl "40/5400+30:1800+30"]

1. e4 {[%emt 0:00:00]} c6 {[%emt 0:00:56]} 2. Nf3 {[%emt 0:00:00]} d5 {[%emt 0:03:24]} 3. Nc3 {[%emt 0:00:00]} Bg4 {[%emt 0:05:15]} 4. h3 {[%emt 0:00:11]} Bxf3 {[%emt 0:00:02]} 5. Qxf3 {[%emt 0:00:09]} e6 {[%emt 0:03:52]} 6. d4 {[%emt 0:00:17]} Nf6 {[%emt 0:00:47]} 7. exd5 {[%emt 0:00:45]} cxd5 {[%emt 0:03:39]} 8. Bd3 {[%emt 0:00:13]} Nc6 {[%emt 0:01:59]} 9. Ne2 {[%emt 0:00:12]} g6 {[%emt 0:03:56]} 10. c3 {[%emt 0:01:32]} Bg7 {[%emt 0:00:13]} 11. O-O {[%emt 0:00:40]} O-O {[%emt 0:05:36]} 12. Bf4 {[%emt 0:06:45]} Re8 {[%emt 0:09:37]} 13. Rfd1 {[%emt 0:05:33]} e5 {[%emt 0:04:03]} 14. dxe5 {[%emt 0:02:18]} Nxe5 {[%emt 0:00:04]} 15. Bxe5 {[%emt 0:00:27]} Rxe5 {[%emt 0:00:03]} 16. Bc2 {[%emt 0:02:16]} Qb6 {[%emt 0:02:00]} 17. Nf4 {[%emt 0:04:20]} Rae8 {[%emt 0:02:46]} 18. Bb3 {[%emt 0:04:01]} Qb5 {[%emt 0:21:45]} 19. Nxd5 {[%emt 0:05:25]} Rf5 {[%emt 0:00:08]} 20. Nxf6+ {[%emt 0:05:19]} Rxf6 {[%emt 0:01:38]} 21. Qg4 {[%emt 0:10:35]} Qe2 {[%emt 0:02:22]} 22. Rf1 {[%emt 0:10:54]} Bf8 {[%emt 0:03:26]} 23. Qd4 {[%emt 0:03:56]} Kg7 {[%emt 0:01:05]} 24. Bc4 {[%emt 0:05:18]} Qc2 {[%emt 0:05:16]} 25. b4 {[%emt 0:05:38]} Re4 {[%emt 0:03:08]} 26. Qd3 {[%emt 0:00:15]} Qxd3 {[%emt 0:00:21]} 27. Bxd3 {[%emt 0:00:05]} Re7 {[%emt 0:00:33]} 28. a3 {[%emt 0:07:17]} Rd6 {[%emt 0:01:16]} 29. Rfd1 {[%emt 0:01:42]} Red7 {[%emt 0:00:37]} 30. Be2 {[%emt 0:00:09]} Rxd1+ {[%emt 0:00:24]} 31. Bxd1 {[%emt 0:00:16]} Be7 {[%emt 0:03:00]} 32. c4 {[%emt 0:05:12]} Bf6 {[%emt 0:03:02]} 33. Rb1 {[%emt 0:00:36]} Rd3 {[%emt 0:00:31]} 34. Bf3 {[%emt 0:04:39]} Rxa3 {[%emt 0:00:16]} 35. Bxb7 {[%emt 0:00:07]} Ra1 {[%emt 0:00:02]} 36. Rxa1 {[%emt 0:00:06]} Bxa1 {[%emt 0:00:02]} 37. c5 {[%emt 0:00:50]} Kf6 {[%emt 0:01:37]} 38. Kf1 {[%emt 0:03:01]} Ke7 {[%emt 0:00:13]} 39. Bd5 {[%emt 0:00:27]} Bc3 {[%emt 0:00:12]} 40. b5 {[%emt 0:00:00]} Bd4 {[%emt 0:00:00]} 41. c6 {[%emt 0:00:19]} Bb6 {[%emt 0:00:35]} 42. Ke2 {[%emt 0:00:23]} Bc7 {[%emt 0:00:35]} 43. Kd3 {[%emt 0:00:21]} Bb6 {[%emt 0:00:25]} 44. f3 {[%emt 0:00:22]} Bc7 {[%emt 0:01:30]} 45. Bb3 {[%emt 0:00:48]} g5 {[%emt 0:03:41]} 46. Ke4 {[%emt 0:02:42]} Kf6 {[%emt 0:01:30]} 47. Kd5 {[%emt 0:02:54]} Ke7 {[%emt 0:00:24]} 48. Bc2 {[%emt 0:00:05]} h6 {[%emt 0:00:03]} 49. Bf5 {[%emt 0:00:13]} h5 {[%emt 0:02:04]} 50. g4 {[%emt 0:00:33]} hxg4 {[%emt 0:00:34]} 51. Bxg4 {[%emt 0:00:23]} f6 {[%emt 0:01:04]} 52. Ke4 {[%emt 0:00:24]} Ba5 {[%emt 0:05:19]} 53. Kf5 {[%emt 0:00:30]} Bd2 {[%emt 0:01:26]} 54. Bh5 {[%emt 0:06:17]} Bc3 {[%emt 0:00:56]} 55. Bf7 {[%emt 0:01:33]} Kd6 {[%emt 0:00:37]} 56. Be6 {[%emt 0:01:12]} Kc7 {[%emt 0:00:26]} 57. Kg6 {[%emt 0:01:13]} Bb2 {[%emt 0:00:53]} 58. Bd5 {[%emt 0:00:26]} Bc3 {[%emt 0:00:14]} 59. Kf5 {[%emt 0:00:07]} Bb2 {[%emt 0:00:36]} 60. f4 {[%emt 0:00:29]} Bc1 {[%emt 0:00:04]} 61. Bf3 {[%emt 0:00:51]} Kd6 {[%emt 0:00:26]} 62. Kg4 {[%emt 0:00:35]} Kc7 {[%emt 0:00:18]} 63. Bg2 {[%emt 0:00:47]} Kd6 {[%emt 0:00:06]} 64. Bf3 {[%emt 0:00:23]} 1/2-1/2

[Event "ROU-chT 1st League 2019"]
[Site "Mamaia"]
[Date "2019.09.29"]
[Round "9.26"]
[White "Schitco, Ivan"]
[Black "Deac, Bogdan-Daniel"]
[Result "1/2-1/2"]
[ECO "E06"]
[WhiteElo "2492"]
[BlackElo "2613"]
[Annotator "ChessBase"]
[PlyCount "62"]
[EventDate "2019.09.21"]
[EventType "team-tourn"]
[EventCountry "ROU"]
[SourceTitle "playchess.com"]
[Source "ChessBase"]
[SourceQuality "1"]
[TimeControl "40/5400+30:1800+30"]

1. d4 {[%emt 0:00:00]} Nf6 {[%emt 0:03:00]} 2. c4 {[%emt 0:00:00]} e6 {[%emt 0:00:02]} 3. g3 {[%emt 0:00:08]} d5 {[%emt 0:00:27]} 4. Bg2 {[%emt 0:00:16]} Be7 {[%emt 0:00:06]} 5. Nf3 {[%emt 0:00:23]} O-O {[%emt 0:00:03]} 6. Nc3 {[%emt 0:01:04]} dxc4 {[%emt 0:00:07]} 7. Ne5 {[%emt 0:00:18]} Qd6 {[%emt 0:00:02]} 8. O-O {[%emt 0:00:53]} Qa6 {[%emt 0:00:03]} 9. a4 {[%emt 0:00:38]} Nc6 {[%emt 0:00:02]} 10. Nb5 {[%emt 0:00:46]} Nxe5 {[%emt 0:00:02]} 11. dxe5 {[%emt 0:00:05]} Rd8 {[%emt 0:00:10]} 12. Bd2 {[%emt 0:02:31]} Ne8 {[%emt 0:00:09]} 13. Qc2 {[%emt 0:01:05]} Bd7 {[%emt 0:00:33]} 14. Qxc4 {[%emt 0:07:56]} Bc6 {[%emt 0:00:23]} 15. Rfd1 {[%emt 0:11:16]} Bd5 {[%emt 0:04:23]} 16. Qc2 {[%emt 0:01:55]} Bxg2 {[%emt 0:04:31]} 17. Kxg2 {[%emt 0:00:05]} c6 {[%emt 0:14:28]} 18. Nc3 {[%emt 0:00:22]} c5 {[%emt 0:02:19]} 19. Be3 {[%emt 0:27:52]} Nc7 {[%emt 0:00:15]} 20. Qe4 {[%emt 0:00:14]} Qb6 {[%emt 0:01:25]} 21. Qc4 {[%emt 0:07:43]} Qc6+ {[%emt 0:01:39]} 22. f3 {[%emt 0:01:57]} Nd5 {[%emt 0:03:48]} 23. Bf2 {[%emt 0:00:47]} Nxc3 {[%emt 0:04:40]} 24. bxc3 {[%emt 0:00:10]} a6 {[%emt 0:00:04]} 25. a5 {[%emt 0:12:15]} Rxd1 {[%emt 0:06:04]} 26. Rxd1 {[%emt 0:00:02]} Rd8 {[%emt 0:00:11]} 27. Rb1 {[%emt 0:02:28]} Rd7 {[%emt 0:10:10]} 28. Rb6 {[%emt 0:01:21]} Qc8 {[%emt 0:01:37]} 29. Rb1 {[%emt 0:02:11]} Qc6 {[%emt 0:25:23]} 30. Rb6 {[%emt 0:00:06]} Qc8 {[%emt 0:00:07]} 31. Rb1 {[%emt 0:00:04]} Qc6 {[%emt 0:00:26]} 1/2-1/2

[Event "ROU-chT 1st League 2019"]
[Site "Mamaia"]
[Date "2019.09.29"]
[Round "9.27"]
[White "Svetushkin, Dmitry"]
[Black "Dicu, Razvan-Stefan"]
[Result "1-0"]
[ECO "B40"]
[WhiteElo "2534"]
[BlackElo "2291"]
[Annotator "ChessBase"]
[PlyCount "71"]
[EventDate "2019.09.21"]
[EventType "team-tourn"]
[EventCountry "ROU"]
[SourceTitle "playchess.com"]
[Source "ChessBase"]
[SourceQuality "1"]
[TimeControl "40/5400+30:1800+30"]

1. e4 {[%emt 0:00:00]} c5 {[%emt 0:00:00]} 2. Nf3 {[%emt 0:00:00]} e6 {[%emt 0:00:00]} 3. d3 {[%emt 0:00:00]} Nc6 {[%emt 0:00:10]} 4. g3 {[%emt 0:00:00]} g6 {[%emt 0:00:22]} 5. c3 {[%emt 0:01:44]} Bg7 {[%emt 0:00:41]} 6. Bg2 {[%emt 0:01:55]} Nge7 {[%emt 0:00:42]} 7. Be3 {[%emt 0:02:44]} b6 {[%emt 0:01:40]} 8. d4 {[%emt 0:01:32]} cxd4 {[%emt 0:00:32]} 9. cxd4 {[%emt 0:00:05]} d5 {[%emt 0:00:43]} 10. e5 {[%emt 0:01:04]} a5 {[%emt 0:12:12]} 11. O-O {[%emt 0:03:10]} Ba6 {[%emt 0:00:52]} 12. Re1 {[%emt 0:00:16]} h6 {[%emt 0:03:14]} 13. h4 {[%emt 0:01:01]} O-O {[%emt 0:09:18]} 14. Nc3 {[%emt 0:15:27]} Rc8 {[%emt 0:03:46]} 15. Qd2 {[%emt 0:04:16]} Nf5 {[%emt 0:09:36]} 16. Bf4 {[%emt 0:00:08]} Nb4 {[%emt 0:31:47]} 17. Bf1 {[%emt 0:02:16]} Bxf1 {[%emt 0:00:41]} 18. Kxf1 {[%emt 0:00:08]} h5 {[%emt 0:09:21]} 19. Kg2 {[%emt 0:02:25]} Qd7 {[%emt 0:01:01]} 20. a3 {[%emt 0:03:08]} Nc6 {[%emt 0:00:48]} 21. Bg5 {[%emt 0:00:47]} b5 {[%emt 0:02:29]} 22. Qf4 {[%emt 0:05:26]} b4 {[%emt 0:00:38]} 23. Ne2 {[%emt 0:00:06]} bxa3 {[%emt 0:01:02]} 24. bxa3 {[%emt 0:00:06]} Nce7 {[%emt 0:05:12]} 25. g4 {[%emt 0:00:16]} hxg4 {[%emt 0:00:06]} 26. Qxg4 {[%emt 0:00:05]} Rc2 {[%emt 0:01:58]} 27. h5 {[%emt 0:06:41]} Rb8 {[%emt 0:00:18]} 28. Nf4 {[%emt 0:06:23]} Rb3 {[%emt 0:03:42]} 29. Bxe7 {[%emt 0:04:23]} Qxe7 {[%emt 0:00:30]} 30. hxg6 {[%emt 0:00:37]} Rxf3 {[%emt 0:00:33]} 31. Kxf3 {[%emt 0:00:34]} Nh4+ {[%emt 0:00:25]} 32. Kg3 {[%emt 0:01:01]} Rc3+ {[%emt 0:00:14]} 33. Kh2 {[%emt 0:02:19]} Nf3+ {[%emt 0:00:07]} 34. Kh1 {[%emt 0:00:04]} Nxe1 {[%emt 0:00:15]} 35. Rxe1 {[%emt 0:00:12]} Rxa3 {[%emt 0:01:24]} 36. Rb1 {[%emt 0:02:45]} 1-0

[Event "ROU-chT 1st League 2019"]
[Site "Mamaia"]
[Date "2019.09.29"]
[Round "9.28"]
[White "Pop, Alexandru"]
[Black "Iordachescu, Viorel"]
[Result "0-1"]
[ECO "A05"]
[WhiteElo "2274"]
[BlackElo "2602"]
[Annotator "ChessBase"]
[PlyCount "84"]
[EventDate "2019.09.21"]
[EventType "team-tourn"]
[EventCountry "ROU"]
[SourceTitle "playchess.com"]
[Source "ChessBase"]
[SourceQuality "1"]
[TimeControl "40/5400+30:1800+30"]

1. Nf3 {[%emt 0:00:00]} Nf6 {[%emt 0:00:00]} 2. c4 {[%emt 0:00:00]} g6 {[%emt 0:00:21]} 3. d4 {[%emt 0:00:09]} Bg7 {[%emt 0:00:14]} 4. e3 {[%emt 0:00:07]} O-O {[%emt 0:00:55]} 5. Be2 {[%emt 0:00:05]} c5 {[%emt 0:01:32]} 6. d5 {[%emt 0:00:09]} e6 {[%emt 0:00:34]} 7. Nc3 {[%emt 0:00:14]} d6 {[%emt 0:00:33]} 8. O-O {[%emt 0:00:14]} exd5 {[%emt 0:01:01]} 9. cxd5 {[%emt 0:00:05]} Bg4 {[%emt 0:00:16]} 10. h3 {[%emt 0:01:55]} Bxf3 {[%emt 0:00:08]} 11. Bxf3 {[%emt 0:00:02]} a6 {[%emt 0:00:48]} 12. a4 {[%emt 0:00:19]} Nbd7 {[%emt 0:00:10]} 13. Re1 {[%emt 0:01:11]} Re8 {[%emt 0:01:54]} 14. e4 {[%emt 0:03:08]} c4 {[%emt 0:00:51]} 15. Be3 {[%emt 0:05:50]} Rc8 {[%emt 0:00:49]} 16. Qc2 {[%emt 0:14:09]} Nc5 {[%emt 0:02:52]} 17. Rad1 {[%emt 0:00:38]} Nd3 {[%emt 0:03:22]} 18. Rf1 {[%emt 0:01:33]} Qa5 {[%emt 0:04:35]} 19. Bd2 {[%emt 0:10:51]} Qb6 {[%emt 0:03:45]} 20. Rb1 {[%emt 0:00:30]} Qb3 {[%emt 0:05:29]} 21. Qxb3 {[%emt 0:02:18]} cxb3 {[%emt 0:00:07]} 22. Rfd1 {[%emt 0:16:34]} Nd7 {[%emt 0:06:05]} 23. Bg4 {[%emt 0:10:42]} N3e5 {[%emt 0:02:24]} 24. Be2 {[%emt 0:01:57]} Nc4 {[%emt 0:00:57]} 25. Bg4 {[%emt 0:06:40]} Rc7 {[%emt 0:00:26]} 26. Bc1 {[%emt 0:00:25]} Nc5 {[%emt 0:02:11]} 27. Bf3 {[%emt 0:03:40]} h5 {[%emt 0:05:41]} 28. Kf1 {[%emt 0:01:08]} Be5 {[%emt 0:11:41]} 29. Kg1 {[%emt 0:03:31]} Nb6 {[%emt 0:01:24]} 30. Ne2 {[%emt 0:03:02]} Nbxa4 {[%emt 0:03:59]} 31. g4 {[%emt 0:01:03]} hxg4 {[%emt 0:00:33]} 32. hxg4 {[%emt 0:00:05]} Nb6 {[%emt 0:01:18]} 33. Bg2 {[%emt 0:00:16]} Nc4 {[%emt 0:01:14]} 34. f4 {[%emt 0:00:26]} Bg7 {[%emt 0:00:23]} 35. Ng3 {[%emt 0:00:10]} a5 {[%emt 0:05:21]} 36. Kf2 {[%emt 0:00:54]} a4 {[%emt 0:00:18]} 37. Kf3 {[%emt 0:00:37]} a3 {[%emt 0:00:58]} 38. bxa3 {[%emt 0:00:23]} b2 {[%emt 0:00:07]} 39. Be3 {[%emt 0:00:32]} Nxa3 {[%emt 0:01:25]} 40. e5 {[%emt 0:00:00]} Nxb1 {[%emt 0:00:00]} 41. Rxb1 {[%emt 0:00:59]} dxe5 {[%emt 0:04:55]} 42. d6 {[%emt 0:01:48]} exf4 {[%emt 0:03:10]} 0-1